[Event "CZE-ch Women 2019"]
[Site "Prague"]
[Date "2019.06.23"]
[Round "9.3"]
[White "Miturova, Magdalena"]
[Black "Olsarova, Karolina"]
[Result "0-1"]
[ECO "A05"]
[WhiteElo "2220"]
[BlackElo "2260"]
[Annotator "ChessBase"]
[PlyCount "74"]
[EventDate "2019.06.15"]
[EventType "tourn"]
[EventCountry "CZE"]
[SourceTitle "playchess.com"]
[Source "ChessBase"]
[SourceQuality "1"]
[TimeControl "40/5400+30:1800+30"]

1. Nf3 {[%emt 0:00:00]} Nf6 {[%emt 0:00:00]} 2. g3 {[%emt 0:00:00]} d5 {[%emt 0:00:00]} 3. Bg2 {[%emt 0:00:02]} Bg4 {[%emt 0:00:07]} 4. d4 {[%emt 0:02:31]} e6 {[%emt 0:02:06]} 5. O-O {[%emt 0:00:20]} Nbd7 {[%emt 0:00:09]} 6. Nbd2 {[%emt 0:00:23]} Be7 {[%emt 0:00:17]} 7. Re1 {[%emt 0:00:10]} O-O {[%emt 0:01:45]} 8. e4 {[%emt 0:00:06]} dxe4 {[%emt 0:02:36]} 9. Nxe4 {[%emt 0:00:07]} c5 {[%emt 0:00:09]} 10. dxc5 {[%emt 0:17:02]} Nxc5 {[%emt 0:00:20]} 11. Nxf6+ {[%emt 0:03:53]} Bxf6 {[%emt 0:00:12]} 12. Qe2 {[%emt 0:00:50]} Rc8 {[%emt 0:05:42]} 13. Rd1 {[%emt 0:04:39]} Qa5 {[%emt 0:11:04]} 14. h3 {[%emt 0:05:32]} Bh5 {[%emt 0:03:10]} 15. a4 {[%emt 0:15:12]} Rfd8 {[%emt 0:12:27]} 16. Rxd8+ {[%emt 0:00:25]} Qxd8 {[%emt 0:05:41]} 17. a5 {[%emt 0:12:49]} Bg6 {[%emt 0:09:26]} 18. h4 {[%emt 0:09:08]} h6 {[%emt 0:05:42]} 19. Kh2 {[%emt 0:02:16]} Bf5 {[%emt 0:07:51]} 20. Ra3 {[%emt 0:05:57]} Nd3 {[%emt 0:10:49]} 21. cxd3 {[%emt 0:10:55]} Rxc1 {[%emt 0:00:07]} 22. Rb3 {[%emt 0:03:09]} Qd5 {[%emt 0:06:09]} 23. Nd2 {[%emt 0:00:39]} Qxa5 {[%emt 0:00:27]} 24. Nc4 {[%emt 0:01:59]} Qe1 {[%emt 0:05:14]} 25. Qxe1 {[%emt 0:00:20]} Rxe1 {[%emt 0:00:04]} 26. Ne3 {[%emt 0:02:29]} b6 {[%emt 0:03:45]} 27. g4 {[%emt 0:01:18]} Bh7 {[%emt 0:00:32]} 28. Kg3 {[%emt 0:00:37]} Rb1 {[%emt 0:03:11]} 29. Nc4 {[%emt 0:00:23]} Rd1 {[%emt 0:00:15]} 30. Be4 {[%emt 0:00:56]} Bxe4 {[%emt 0:00:17]} 31. dxe4 {[%emt 0:00:01]} Rd4 {[%emt 0:00:20]} 32. Na3 {[%emt 0:00:55]} Rxe4 {[%emt 0:00:38]} 33. Nb5 {[%emt 0:00:09]} a6 {[%emt 0:01:41]} 34. Nc3 {[%emt 0:00:17]} Bxc3 {[%emt 0:00:25]} 35. bxc3 {[%emt 0:00:15]} b5 {[%emt 0:00:11]} 36. Kf3 {[%emt 0:01:37]} Rc4 {[%emt 0:00:21]} 37. Ra3 {[%emt 0:00:19]} Ra4 {[%emt 0:00:15]} 0-1

[Event "CZE-ch Women 2019"]
[Site "Prague"]
[Date "2019.06.23"]
[Round "9.4"]
[White "Petrova, Kristyna"]
[Black "Kulovana, Eva"]
[Result "1/2-1/2"]
[ECO "B18"]
[WhiteElo "2259"]
[BlackElo "2208"]
[Annotator "ChessBase"]
[PlyCount "123"]
[EventDate "2019.06.15"]
[EventType "tourn"]
[EventCountry "CZE"]
[SourceTitle "playchess.com"]
[Source "ChessBase"]
[SourceQuality "1"]
[TimeControl "40/5400+30:1800+30"]

1. e4 {[%emt 0:00:00]} c6 {[%emt 0:00:00]} 2. d4 {[%emt 0:00:00]} d5 {[%emt 0:00:00]} 3. Nc3 {[%emt 0:00:00]} dxe4 {[%emt 0:00:00]} 4. Nxe4 {[%emt 0:00:00]} Bf5 {[%emt 0:00:00]} 5. Ng3 {[%emt 0:00:01]} Bg6 {[%emt 0:00:01]} 6. N1e2 {[%emt 0:00:13]} e6 {[%emt 0:00:58]} 7. Nf4 {[%emt 0:00:37]} Bd6 {[%emt 0:00:17]} 8. h4 {[%emt 0:00:54]} Qc7 {[%emt 0:00:38]} 9. Nxg6 {[%emt 0:00:22]} hxg6 {[%emt 0:00:19]} 10. Ne4 {[%emt 0:00:11]} Bf4 {[%emt 0:04:57]} 11. Bxf4 {[%emt 0:00:21]} Qxf4 {[%emt 0:00:04]} 12. Ng5 {[%emt 0:00:14]} Nd7 {[%emt 0:04:20]} 13. g3 {[%emt 0:00:44]} Qc7 {[%emt 0:00:30]} 14. Bg2 {[%emt 0:05:37]} Ndf6 {[%emt 0:01:05]} 15. Qd3 {[%emt 0:04:24]} O-O-O {[%emt 0:01:35]} 16. O-O-O {[%emt 0:02:42]} Nh6 {[%emt 0:01:08]} 17. Qe2 {[%emt 0:14:22]} Kb8 {[%emt 0:05:34]} 18. Nf3 {[%emt 0:04:00]} Nf5 {[%emt 0:01:28]} 19. c3 {[%emt 0:01:30]} Nd7 {[%emt 0:06:48]} 20. Rhe1 {[%emt 0:07:56]} c5 {[%emt 0:05:31]} 21. Kb1 {[%emt 0:06:35]} c4 {[%emt 0:03:41]} 22. Ne5 {[%emt 0:15:15]} Nb6 {[%emt 0:02:32]} 23. Ng4 {[%emt 0:04:54]} Rd6 {[%emt 0:02:11]} 24. Ne3 {[%emt 0:03:10]} Nxe3 {[%emt 0:00:31]} 25. Qxe3 {[%emt 0:01:01]} Rh5 {[%emt 0:00:14]} 26. Kc1 {[%emt 0:07:12]} Ra5 {[%emt 0:01:21]} 27. a3 {[%emt 0:00:04]} Rb5 {[%emt 0:00:25]} 28. Rd2 {[%emt 0:01:11]} Na4 {[%emt 0:02:50]} 29. Ree2 {[%emt 0:02:07]} Rdb6 {[%emt 0:01:13]} 30. Rc2 {[%emt 0:00:28]} Qd6 {[%emt 0:03:32]} 31. Qf4 {[%emt 0:08:18]} Qxf4+ {[%emt 0:02:30]} 32. gxf4 {[%emt 0:00:01]} Rh5 {[%emt 0:00:24]} 33. Re5 {[%emt 0:00:50]} Rb5 {[%emt 0:02:40]} 34. Rce2 {[%emt 0:08:33]} Rbxe5 {[%emt 0:00:28]} 35. fxe5 {[%emt 0:00:07]} Rxh4 {[%emt 0:00:48]} 36. Kc2 {[%emt 0:00:07]} Rh2 {[%emt 0:01:58]} 37. Bf3 {[%emt 0:00:43]} Nb6 {[%emt 0:00:51]} 38. b3 {[%emt 0:00:39]} cxb3+ {[%emt 0:01:13]} 39. Kxb3 {[%emt 0:00:02]} Nd5 {[%emt 0:01:23]} 40. Bxd5 {[%emt 0:02:47]} exd5 {[%emt 0:00:05]} 41. e6 {[%emt 0:03:44]} fxe6 {[%emt 0:00:07]} 42. Rxe6 {[%emt 0:00:09]} Rxf2 {[%emt 0:00:32]} 43. Rxg6 {[%emt 0:00:55]} Rf7 {[%emt 0:00:47]} 44. Rd6 {[%emt 0:04:59]} Rf5 {[%emt 0:01:35]} 45. Rg6 {[%emt 0:00:09]} Rf7 {[%emt 0:00:24]} 46. Rd6 {[%emt 0:00:24]} g5 {[%emt 0:00:32]} 47. Rg6 {[%emt 0:00:18]} Rf5 {[%emt 0:00:14]} 48. Rg7 {[%emt 0:00:44]} a6 {[%emt 0:02:52]} 49. Kb4 {[%emt 0:04:06]} b6 {[%emt 0:04:29]} 50. a4 {[%emt 0:01:07]} Kc8 {[%emt 0:02:06]} 51. a5 {[%emt 0:03:50]} bxa5+ {[%emt 0:00:56]} 52. Kxa5 {[%emt 0:00:18]} Kd8 {[%emt 0:00:05]} 53. Kxa6 {[%emt 0:02:25]} Ke8 {[%emt 0:00:07]} 54. Kb5 {[%emt 0:00:27]} Kf8 {[%emt 0:01:37]} 55. Rh7 {[%emt 0:01:44]} g4 {[%emt 0:03:51]} 56. Rh1 {[%emt 0:01:17]} Ke7 {[%emt 0:02:18]} 57. c4 {[%emt 0:00:33]} dxc4+ {[%emt 0:09:54]} 58. Kxc4 {[%emt 0:00:01]} Ke6 {[%emt 0:00:26]} 59. d5+ {[%emt 0:03:46]} Ke5 {[%emt 0:01:43]} 60. Re1+ {[%emt 0:00:32]} Kf6 {[%emt 0:02:43]} 61. d6 {[%emt 0:01:36]} Rf2 {[%emt 0:03:23]} 62. Kd4 1/2-1/2

[Event "CZE-ch Women 2019"]
[Site "Prague"]
[Date "2019.06.23"]
[Round "9.5"]
[White "Kanakova, Natalie"]
[Black "Laurincova, Kristyna"]
[Result "1-0"]
[ECO "A05"]
[WhiteElo "2201"]
[BlackElo "1984"]
[Annotator "ChessBase"]
[PlyCount "47"]
[EventDate "2019.06.15"]
[EventType "tourn"]
[EventCountry "CZE"]
[SourceTitle "playchess.com"]
[Source "ChessBase"]
[SourceQuality "1"]
[TimeControl "40/5400+30:1800+30"]

1. Nf3 {[%emt 0:00:00]} Nf6 {[%emt 0:00:00]} 2. g3 {[%emt 0:00:00]} g6 {[%emt 0:00:00]} 3. b3 {[%emt 0:00:20]} Bg7 {[%emt 0:00:01]} 4. Bb2 {[%emt 0:00:05]} O-O {[%emt 0:00:07]} 5. Bg2 {[%emt 0:00:27]} c5 {[%emt 0:02:43]} 6. c4 {[%emt 0:00:49]} d5 {[%emt 0:04:16]} 7. cxd5 {[%emt 0:02:18]} Nxd5 {[%emt 0:00:51]} 8. Bxg7 {[%emt 0:00:52]} Kxg7 {[%emt 0:00:07]} 9. O-O {[%emt 0:02:23]} Nc6 {[%emt 0:05:10]} 10. Qc2 {[%emt 0:03:51]} b6 {[%emt 0:08:29]} 11. Nc3 {[%emt 0:03:34]} Bb7 {[%emt 0:02:27]} 12. Qb2 {[%emt 0:12:59]} Kg8 {[%emt 0:01:00]} 13. Rac1 {[%emt 0:03:07]} Rb8 {[%emt 0:04:05]} 14. h4 {[%emt 0:04:35]} e5 {[%emt 0:15:39]} 15. d3 {[%emt 0:07:36]} Re8 {[%emt 0:02:31]} 16. Nxd5 {[%emt 0:07:57]} Qxd5 {[%emt 0:00:11]} 17. Ng5 {[%emt 0:01:47]} Qd8 {[%emt 0:11:28]} 18. Qd2 {[%emt 0:02:42]} Nd4 {[%emt 0:01:16]} 19. Rfe1 {[%emt 0:14:47]} e4 {[%emt 0:11:06]} 20. Qf4 {[%emt 0:03:26]} f6 {[%emt 0:15:26]} 21. Nxe4 {[%emt 0:00:26]} f5 {[%emt 0:00:11]} 22. Nd6 {[%emt 0:05:33]} Rxe2 {[%emt 0:08:06]} 23. Nxb7 {[%emt 0:03:18]} Qe8 {[%emt 0:00:08]} 24. Kf1 {[%emt 0:01:59]} 1-0